bitfinex/quotes_ETHUSD_20241001
["timestamp","ask_amount","ask_price","bid_price","bid_amount"]
[1727753552393,3.79982,2631.7,2631.2,4.62643]
[1727753554586,0.837736,2631.8,2631.2,0.8259]
[1727753554929,4.57741,2632.0,2631.4,0.7752]
[1727753555136,4.57741,2632.0,2631.5,3.80008]
[1727753556105,3.79953,2631.9,2631.4,0.7752]
[1727753556329,3.79953,2631.9,2631.5,0.04295976]
[1727753557126,3.79969,2631.8,2631.5,0.04295976]
[1727753557298,0.759922,2631.7,2631.5,0.04295976]
[1727753558134,3.79983,2631.7,2631.5,0.04295976]
[1727753558286,3.79953,2631.9,2631.5,0.04295976]
[1727753558726,7.59916,2631.9,2631.5,0.04295976]
[1727753559087,3.79953,2631.9,2631.5,0.04295976]
[1727753560103,0.778,2632.0,2631.5,0.04295976]
[1727753560104,3.7994,2632.0,2631.5,0.04295976]
[1727753560551,0.835213,2632.0,2631.5,0.04295976]
[1727753560907,3.79989,2631.7,2631.5,0.04295976]
[1727753563150,4.5764,2631.8,2631.5,0.04295976]
[1727753565126,3.79984,2631.7,2631.5,0.04295976]
[1727753566641,0.7766,2631.8,2631.5,0.04295976]
[1727753566947,0.837581,2631.7,2631.5,0.04295976]
[1727753569133,1.594413,2632.0,2631.5,0.04295976]
[1727753569342,3.7993,2632.1,2631.5,0.04295976]
[1727753569580,14.6728349,2632.3,2631.5,0.04295976]
[1727753569581,3.79914,2632.2,2631.7,3.79981]
[1727753569888,5.36988,2632.2,2631.7,3.79981]
[1727753570186,5.36988,2632.2,2631.2,3.8005]
[1727753570187,11.14906,2632.3,2631.9,0.8266]
[1727753570388,3.79906,2632.3,2631.9,0.8266]
[1727753570552,4.55793,2632.5,2632.0,0.04302495]
[1727753570753,3.79873,2632.5,2632.0,3.84237495]
[1727753570948,3.79882,2632.4,2632.0,0.04302495]
[1727753571149,3.79896,2632.3,2632.0,0.04302495]
[1727753578012,8.1585359,2632.5,2632.0,0.04302495]
[1727753578013,7.3230149,2632.1,2632.0,0.04302495]
[1727753578343,5.44818639,2632.1,2631.4,0.7852]
[1727753578463,3.79975,2631.8,2631.4,0.7852]
[1727753578799,3.79975,2631.8,2631.5,0.04145535]
[1727753578984,3.5237749,2631.9,2631.5,0.04145535]
[1727753579197,4.53201549,2631.8,2631.5,0.04145535]
[1727753579532,4.53201549,2631.8,2631.4,0.7852]
[1727753579663,4.53201549,2631.8,2631.5,0.04145535]
[1727753580461,0.73232549,2631.8,2631.5,0.04145535]
[1727753581901,3.79996,2631.6,2631.5,0.04145535]
[1727753582201,3.79996,2631.6,2630.3,0.37530695]
[1727753582202,1.26181804,2631.6,2631.2,3.80051]
[1727753582504,3.7996,2631.9,2631.3,0.84069707]
[1727753582505,4.5572,2631.9,2631.3,0.84069707]
[1727753582799,3.7998,2631.8,2631.3,0.84069707]
[1727753583003,4.98787749,2631.8,2631.3,0.84069707]
[1727753583309,8.51165239,2631.8,2631.3,0.84069707]
[1727753584170,4.98787749,2631.8,2631.3,0.84069707]
[1727753584381,0.7576,2631.9,2631.3,4.64105707]
[1727753584382,3.79954,2631.9,2631.3,4.64105707]
[1727753584568,3.79954,2631.9,2631.3,0.84069707]
[1727753585762,3.79972,2631.8,2631.3,0.84069707]
[1727753586263,3.79954,2631.9,2631.3,0.84069707]
[1727753586464,3.79983,2631.7,2631.3,0.84069707]
[1727753586698,8.05611539,2631.6,2631.3,0.84069707]
[1727753586975,4.53234049,2631.6,2631.3,0.84069707]
[1727753587305,0.73236049,2631.6,2631.3,0.84069707]
[1727753587665,4.53233049,2631.6,2631.3,0.84069707]
[1727753587861,3.80013,2631.5,2631.3,0.03909707]
[1727753588097,4.98573954,2631.5,2631.1,0.7541]
[1727753588275,4.98573954,2631.5,2631.2,0.03912313]
[1727753588768,3.8004,2631.3,2631.2,0.03912313]
[1727753590218,0.7552,2631.4,2630.9,0.7541]
[1727753590379,4.5551,2631.7,2631.2,0.03912313]
[1727753590613,3.7997,2631.8,2631.3,0.7541]
[1727753590801,3.7997,2631.8,2631.4,0.03907915]
[1727753591802,7.59981,2631.7,2631.4,0.03907915]
[1727753592012,3.79986,2631.7,2631.4,0.03907915]
[1727753592624,1.490475,2631.8,2631.4,0.03907915]
[1727753592786,5.290265,2631.8,2631.4,0.03907915]
[1727753593741,3.80011,2631.5,2631.4,0.03907915]
[1727753593902,4.560118,2631.5,2631.1,0.7885]
[1727753594107,3.80027,2631.4,2631.2,0.03913533]
[1727753594417,3.8004,2631.3,2631.2,0.03913533]
[1727753594618,4.7165178,2631.3,2631.2,0.03913533]
[1727753595024,4.7165178,2631.3,2630.6,0.7885]
[1727753595025,3.80091,2631.0,2630.6,0.7885]
[1727753595337,3.80091,2631.0,2630.7,0.0393348]
[1727753595703,4.60113,2631.2,2630.7,0.0393348]
[1727753596053,3.8007,2631.1,2630.7,0.0393348]
[1727753596547,4.60113,2631.2,2630.7,0.0393348]
[1727753596747,4.7165378,2631.3,2630.8,4.58171]
[1727753597041,4.7165378,2631.3,2630.9,0.0392908]
[1727753597042,0.9161178,2631.3,2630.9,0.0392908]
[1727753597242,3.80033,2631.4,2630.9,0.0392908]
[1727753597747,8.3607,2631.6,2630.9,3.8402408]
[1727753597951,8.3607,2631.6,2630.9,3.80095]
[1727753597952,4.56064,2631.6,2630.9,3.80095]
[1727753598103,3.80026,2631.4,2631.0,0.03926881]
[1727753600002,5.1657515,2631.6,2631.0,3.84008881]
[1727753600208,5.1657515,2631.6,2631.1,0.7748]
[1727753600649,5.1657515,2631.6,2631.2,0.03926958]
[1727753600650,3.80012,2631.5,2631.2,0.03926958]
[1727753601692,3.80026,2631.4,2631.2,0.03926958]
[1727753601893,4.4051515,2631.6,2631.2,0.03926958]
[1727753602290,6.107735,2631.8,2631.2,0.03926958]
[1727753602593,3.79976,2631.8,2631.3,3.80039]
[1727753602755,3.79976,2631.8,2631.4,0.03920526]
[1727753602951,3.79976,2631.8,2631.3,3.80039]
[1727753603156,3.79976,2631.8,2631.4,0.03920526]
[1727753603376,3.79976,2631.8,2631.3,3.80039]
[1727753603576,3.79976,2631.8,2631.4,0.03920526]
[1727753603856,3.79976,2631.8,2631.2,3.80043]
[1727753603857,0.841673,2631.8,2631.2,3.80043]
[1727753604083,3.79968,2631.8,2631.2,3.80043]
[1727753604388,3.79968,2631.8,2631.3,0.03922725]
[1727753604558,3.79968,2631.8,2631.2,3.80043]
[1727753604754,3.79968,2631.8,2631.3,0.03922725]
[1727753604956,3.79968,2631.8,2631.2,3.80043]
[1727753605267,3.79968,2631.8,2631.3,0.03922725]
[1727753605465,3.79983,2631.7,2631.3,0.03922725]
[1727753605676,3.79983,2631.7,2631.2,3.80043]
[1727753605865,3.79983,2631.7,2631.4,0.03920526]
[1727753606080,3.79983,2631.7,2631.3,0.03922725]
[1727753606264,3.79967,2631.9,2631.5,0.03918327]
[1727753606468,4.641355,2631.8,2631.3,3.8004]
[1727753606666,3.79969,2631.8,2631.3,3.8004]
[1727753606885,3.79969,2631.8,2631.4,0.03920526]
[1727753607628,3.79969,2631.8,2631.3,0.8313]
[1727753607785,11.1492,2632.2,2631.6,0.8313]
[1727753608108,3.79933,2632.1,2631.6,0.8313]
[1727753608366,3.79933,2632.1,2631.6,4.63125]
[1727753608515,3.79933,2632.1,2631.7,0.03904577]
[1727753610090,11.1492,2632.2,2631.7,0.03904577]
[1727753610301,3.5237749,2632.8,2631.7,0.03904577]
[1727753610302,10.5243,2632.7,2631.8,4.6309]
[1727753610504,3.79863,2632.6,2632.0,3.7993]
[1727753610723,3.79863,2632.6,2632.1,0.8126]
[1727753610934,3.79863,2632.6,2632.1,0.85149685]
[1727753611128,3.79875,2632.5,2632.1,0.85149685]
[1727753612113,3.79863,2632.6,2632.1,0.85149685]
[1727753612634,7.59727,2632.6,2632.1,0.85149685]
[1727753612797,3.79863,2632.6,2632.1,4.65071685]
[1727753613197,3.79863,2632.6,2632.1,0.85149685]
[1727753613901,3.79863,2632.6,2632.1,1.66896203]
[1727753614549,7.59726,2632.6,2632.1,1.66896203]
[1727753614729,3.79863,2632.6,2632.1,1.66896203]
[1727753615039,7.59726,2632.6,2632.1,1.66896203]
[1727753615248,3.79867,2632.5,2632.1,1.66896203]
[1727753615430,3.79863,2632.6,2632.1,1.66896203]
[1727753615826,7.59728,2632.6,2632.1,1.66896203]
[1727753616060,3.79871,2632.5,2632.1,1.66896203]
[1727753618758,3.79887,2632.4,2632.1,1.66896203]
[1727753618970,3.79871,2632.5,2632.1,0.85149685]
[1727753620273,3.79864,2632.6,2632.1,4.61183]
[1727753620458,3.79864,2632.6,2632.2,0.03836248]
[1727753620789,3.79846,2632.7,2632.3,0.7841]
[1727753621001,3.79846,2632.7,2632.4,0.03831854]
[1727753621305,3.79853,2632.6,2632.4,0.03831854]
[1727753621653,3.79846,2632.7,2632.4,0.03831854]
[1727753623784,3.79816,2632.9,2632.4,0.03831854]
[1727753624294,0.75441854,2633.1,2632.5,7.3223549]
[1727753624295,0.00171854,2633.1,2632.5,7.3223549]
[1727753624492,0.00171854,2633.1,2632.8,0.7733]
[1727753624905,0.00171854,2633.1,2632.9,0.03805017]
[1727753625195,0.00171854,2633.1,2633.0,4.56244]
[1727753625389,0.00171854,2633.1,2633.0,6.42624918]
[1727753625720,0.00171854,2633.1,2633.0,9.42624918]
[1727753626031,0.00171854,2633.1,2633.0,9.3502992]
[1727753628813,0.00171854,2633.1,2633.0,8.8002992]
[1727753631246,0.00171854,2633.1,2633.0,9.3502992]
[1727753635618,0.00171854,2633.1,2633.0,8.8002992]
[1727753637301,0.00171854,2633.1,2633.0,5.8002992]
[1727753640050,0.00171854,2633.1,2633.0,6.42625128]
[1727753641744,0.00171854,2633.1,2633.0,6.3502992]
[1727753642336,0.00171854,2633.1,2633.0,6.42624464]
[1727753644547,0.00171854,2633.1,2633.0,6.3502992]
[1727753645403,0.00171854,2633.1,2633.0,5.8002992]
[1727753645740,4.59961854,2633.1,2633.0,0.03802821]
[1727753645942,0.80181854,2633.1,2632.5,4.57278]
[1727753646255,0.80181854,2633.1,2633.0,0.03589732]
[1727753646347,1.26177439,2633.1,2632.7,3.79835]
[1727753646541,1.26177439,2633.1,2633.0,0.03589732]
[1727753646760,1.26177439,2633.1,2632.5,4.57278]
[1727753646761,5.05957439,2633.1,2632.5,4.57278]
[1727753646942,5.05957439,2633.1,2633.0,0.03589732]
[1727753647167,5.05957439,2633.1,2632.5,8.37137]
[1727753647168,1.26177439,2633.1,2632.6,3.79851]
[1727753647373,1.26177439,2633.1,2633.0,0.03589732]
[1727753647569,1.26177439,2633.1,2632.6,3.79845]
[1727753647777,5.05962439,2633.1,2633.0,0.03589732]
[1727753647941,5.05962439,2633.1,2632.6,3.79849]
[1727753648144,5.05962439,2633.1,2632.7,0.03596321]
[1727753649279,5.05962439,2633.1,2632.5,3.79858]
[1727753649280,4.30392244,2633.0,2632.5,3.79858]
[1727753649458,0.50596244,2633.0,2632.8,0.03594124]
[1727753649658,0.50596244,2633.0,2632.5,3.79858]
[1727753649839,0.50596244,2633.0,2632.9,0.03591928]
[1727753650046,0.50596244,2633.0,2632.6,3.7985]
[1727753650306,4.59966854,2633.1,2632.9,0.03591928]
[1727753650447,4.59966854,2633.1,2632.6,3.7985]
[1727753650986,4.59966854,2633.1,2632.7,0.03596321]
[1727753651681,0.80181854,2633.1,2632.7,3.83433321]
[1727753652074,0.80181854,2633.1,2632.7,7.63263321]
[1727753652275,0.80181854,2633.1,2632.8,3.79815]
[1727753652787,0.00171854,2633.1,2632.9,0.03591928]
[1727753653012,0.00171854,2633.1,2633.0,7.3217149]
[1727753653288,0.00171854,2633.1,2633.0,7.35812002]
[1727753653661,0.00171854,2633.1,2633.0,8.17792002]
[1727753654495,0.00171854,2633.1,2633.0,4.65414512]
[1727753655008,0.00171854,2633.1,2633.0,0.03640512]
[1727753655842,0.00171854,2633.1,2632.8,3.79819]
[1727753655974,0.00171854,2633.1,2633.0,0.03623449]
[1727753656308,0.00171854,2633.1,2632.6,3.79843]
[1727753656309,0.46021239,2633.1,2632.6,3.79843]
[1727753656465,0.00171854,2633.1,2633.0,0.03623449]
[1727753657106,0.00171854,2633.1,2632.6,3.79843]
[1727753657420,0.00171667,2633.1,2632.6,3.79843]
[1727753657580,0.00171667,2633.1,2632.7,0.03539525]
[1727753657774,4.25810034,2633.1,2632.7,0.03539525]
[1727753658084,4.25809034,2633.1,2632.5,3.79855]
[1727753658303,3.7981,2632.9,2632.8,0.03537329]
[1727753658611,3.7981,2632.9,2632.8,0.04282514]
[1727753658612,4.68529903,2632.9,2632.8,0.04282514]
[1727753658763,0.00171667,2633.1,2632.8,3.7981]
[1727753659000,0.00171667,2633.1,2633.0,7.3217149]
[1727753659411,0.00171667,2633.1,2633.0,7.36841209]
[1727753659578,0.00171667,2633.1,2633.0,3.84463719]
[1727753660169,0.00171667,2633.1,2633.0,7.44436367]
[1727753660375,0.00171667,2633.1,2633.0,8.64533804]
[1727753660602,0.00171667,2633.1,2633.0,8.56938646]
[1727753665743,0.00171667,2633.1,2633.0,11.56938646]
[1727753665907,0.00171667,2633.1,2633.0,12.88098646]
[1727753673981,0.00171667,2633.1,2633.0,13.67298202]
[1727753674183,0.00171667,2633.1,2633.0,14.05418202]
[1727753676874,0.00171667,2633.1,2633.0,13.26218646]
[1727753677082,0.00171667,2633.1,2633.0,12.71218646]
[1727753677564,0.00171667,2633.1,2633.0,12.33098646]
[1727753677764,0.00171667,2633.1,2633.0,11.13001209]
[1727753678390,0.00171667,2633.1,2633.0,10.36841209]
[1727753679603,0.00171667,2633.1,2633.0,7.36841209]
[1727753680424,0.00171667,2633.1,2633.0,3.84463719]
[1727753686323,0.00171667,2633.1,2633.0,7.44436114]
[1727753686521,0.00171667,2633.1,2633.0,8.56860525]
[1727753686680,7.35,2633.8,2633.4,3.79729]
[1727753686886,3.79659,2634.0,2633.5,0.05649904]
[1727753687282,7.35,2634.3,2633.5,0.05649904]
[1727753687546,3.79674,2633.9,2633.5,0.05649904]
[1727753687746,4.556073,2633.9,2633.5,0.05649904]
[1727753689721,3.79694,2633.7,2633.5,0.05649904]
[1727753690052,4.56108,2633.6,2633.1,3.79779]
[1727753690348,4.56108,2633.6,2633.2,0.05660205]
[1727753690550,3.79735,2633.5,2633.2,0.05660205]
[1727753690755,3.79735,2633.5,2633.0,3.79783]
[1727753690756,0.8265,2633.4,2633.0,3.79783]
[1727753691233,0.8265,2633.4,2633.1,0.05660482]
[1727753692047,0.8265,2633.4,2633.1,3.85439482]
[1727753692219,0.8265,2633.4,2633.1,3.85438482]
[1727753692944,0.8265,2633.4,2633.1,0.05660482]
[1727753694013,0.7765,2633.4,2633.1,0.05660482]
[1727753695744,0.7765,2633.4,2633.1,3.85432482]
[1727753696954,0.7765,2633.4,2633.1,0.05660482]
[1727753698222,0.7765,2633.4,2632.8,7.3219849]
[1727753698223,0.7765,2633.4,2633.2,3.79757]
[1727753698532,0.7765,2633.4,2633.3,0.05667368]
[1727753698855,0.7765,2633.4,2633.1,3.79767]
[1727753699236,0.7765,2633.4,2633.2,0.05103924]
[1727753699829,0.7765,2633.4,2633.1,3.79778]
[1727753700033,0.7765,2633.4,2633.2,0.05671027]
[1727753700865,0.7765,2633.4,2633.2,3.79765]
[1727753701100,3.79673,2633.9,2633.4,3.79736]
[1727753701101,0.8263,2633.6,2633.4,3.79736]
[1727753701280,11.14654,2634.0,2633.5,3.79722]
[1727753701472,0.8263,2633.9,2633.5,3.8538205]
[1727753702551,4.62295,2633.9,2633.5,0.0566005]
[1727753702966,0.8263,2633.9,2633.5,3.79721]
[1727753703171,0.8263,2633.9,2633.6,0.05644893]
[1727753705291,0.8165,2634.1,2633.7,3.79689]
[1727753705578,0.8165,2634.1,2633.8,0.05628109]
[1727753706084,0.8165,2634.1,2633.9,0.05624451]
[1727753706264,0.8165,2634.1,2633.7,3.79685]
[1727753706476,0.8165,2634.1,2633.8,0.05628109]
[1727753706778,0.8165,2634.1,2633.7,3.79685]
[1727753706984,0.8165,2634.1,2633.9,0.06299358]
[1727753707275,0.8165,2634.1,2633.4,3.5237749]
[1727753707276,5.453778,2634.1,2633.4,3.5237749]
[1727753707478,5.453778,2634.1,2633.6,3.79699]
[1727753707479,0.8165,2634.1,2633.6,3.79699]
[1727753707685,0.8165,2634.1,2633.7,3.85992587]
[1727753708783,0.8165,2634.1,2633.7,0.06307587]
[1727753709145,0.8165,2634.1,2633.7,3.85990587]
[1727753709458,0.8165,2634.1,2633.8,3.79671]
[1727753709976,0.8165,2634.1,2633.9,0.05039486]
[1727753710502,5.074149,2634.1,2633.9,0.05039486]
[1727753710810,3.79716,2633.6,2633.1,3.79779]
[1727753711107,3.79716,2633.6,2633.0,3.79782]
[1727753711108,0.7883,2633.5,2633.0,3.79782]
[1727753711458,0.7883,2633.5,2633.0,7.59568]
[1727753711666,0.7883,2633.5,2633.0,3.79782]
[1727753711863,3.79746,2633.4,2632.8,3.79815]
[1727753712083,3.79746,2633.4,2632.8,4.60642249]
[1727753712298,3.79746,2633.4,2632.8,8.40456249]
[1727753712578,4.5856,2633.5,2632.9,3.79803]
[1727753712982,0.7883,2633.5,2633.0,3.79794]
[1727753714892,0.7883,2633.5,2633.0,3.79784]
[1727753715578,3.79762,2633.3,2632.7,3.79838]
[1727753715775,0.8241,2633.2,2632.8,3.79821]
[1727753716231,0.8241,2633.2,2632.8,7.59635]
[1727753716531,0.8241,2633.2,2632.8,3.79814]
[1727753717812,0.8241,2633.2,2632.5,7.3223149]
[1727753717813,0.8241,2633.2,2632.6,3.79848]
[1727753718206,5.083941,2633.2,2632.6,3.79848]
[1727753718420,1.286271,2633.2,2632.7,3.79835]
[1727753718601,1.286271,2633.2,2632.8,3.79823]
[1727753718824,1.286271,2633.2,2632.7,3.79835]
[1727753719152,0.8241,2633.2,2632.7,3.79828]
[1727753719309,0.8241,2633.2,2632.9,3.79806]
[1727753720185,0.8241,2633.2,2632.9,3.798]
[1727753722491,4.255818,2633.5,2632.9,3.798]
[1727753722690,0.8236,2633.4,2633.0,3.79793]
[1727753723124,0.8236,2633.4,2633.1,3.79778]
[1727753723485,0.8236,2633.4,2632.9,4.5518]
[1727753723829,0.7696,2633.7,2632.5,3.79859]
[1727753724046,0.7696,2633.7,2632.3,3.79889]
[1727753724047,0.8287,2633.3,2632.3,3.79889]
[1727753724184,0.8287,2632.7,2632.1,8.1332749]
[1727753724529,0.8287,2632.7,2631.6,3.16562568]
[1727753724530,3.79867,2632.5,2632.0,3.79931]
[1727753724691,10.8737749,2633.2,2631.9,4.3341749]
[1727753724692,0.8075,2632.4,2631.9,8.1335949]
[1727753724892,0.8075,2632.4,2632.0,3.79938]
[1727753725547,0.8075,2632.4,2631.9,4.60982]
[1727753725853,4.60633,2632.4,2631.9,3.79942]
[1727753726663,0.8075,2632.4,2632.0,3.79938]
[1727753726968,0.8075,2632.4,2632.1,3.79921]
[1727753727259,0.8075,2632.4,2632.1,7.59842]
[1727753727559,0.8075,2632.4,2632.1,3.79921]
[1727753727967,0.8075,2632.4,2631.9,3.79944]
[1727753728642,4.60632,2632.4,2631.9,3.79944]
[1727753729769,0.8075,2632.4,2631.9,3.79944]
[1727753729976,0.8075,2632.4,2631.9,7.59885]
[1727753730281,0.8075,2632.4,2631.9,3.79941]
[1727753730632,0.8075,2632.4,2632.0,3.79929]
[1727753730974,0.8075,2632.4,2632.2,3.79909]
[1727753731265,0.8154,2632.7,2632.3,3.79889]
[1727753731470,0.8154,2632.7,2632.4,3.7988]
[1727753731766,0.8154,2632.7,2632.3,7.59776]
[1727753731970,0.8154,2632.7,2632.3,3.79887]
[1727753732144,0.8154,2632.7,2632.4,3.79879]
[1727753732352,0.8154,2632.7,2632.4,3.90542039]
[1727753732868,0.8154,2632.7,2632.4,0.10663039]
[1727753733051,0.824,2633.0,2632.5,11.1209249]
[1727753733470,0.824,2633.0,2632.6,3.90562785]
[1727753733883,0.824,2633.0,2632.7,3.79836]
[1727753734052,11.1476,2633.3,2632.7,3.79836]
[1727753734053,4.5783,2633.3,2632.8,0.10698909]
[1727753734384,0.7807,2633.3,2632.8,0.46676691]
[1727753734543,0.7807,2633.3,2632.9,0.10696431]
[1727753735056,0.7807,2633.3,2632.9,0.18292192]
[1727753735267,0.7807,2633.3,2632.9,3.90492431]
[1727753736083,0.7807,2633.3,2632.9,0.10696431]
[1727753736295,0.7807,2633.3,2632.9,1.27637492]
[1727753736489,0.7807,2633.3,2632.9,0.10696431]
[1727753739981,0.7807,2633.3,2632.9,3.90503431]
[1727753741403,0.7807,2633.3,2633.0,3.79782]
[1727753741917,8.1602,2633.6,2633.1,3.90452156]
[1727753742072,0.8102,2633.6,2633.1,3.90452156]
[1727753742260,0.8102,2633.6,2633.2,3.79764]
[1727753742496,0.8102,2633.6,2633.3,0.10677201]
[1727753742690,0.8102,2633.6,2633.2,3.79764]
[1727753742998,0.8102,2633.6,2633.3,0.10677201]
[1727753743293,0.8102,2633.6,2632.9,7.3217749]
[1727753743504,3.79731,2633.5,2633.0,0.10663965]
[1727753744001,0.8102,2633.6,2633.1,3.79779]
[1727753744162,0.8102,2633.6,2633.2,3.79757]
[1727753744505,0.8102,2633.6,2633.2,3.9041601]
[1727753745169,0.8102,2633.6,2633.2,0.1065901]
[1727753745367,4.60734,2633.6,2633.2,0.1065901]
[1727753745571,4.60734,2633.6,2633.0,7.59571]
[1727753745804,4.60734,2633.6,2633.3,0.10652885]
[1727753746005,4.60734,2633.6,2633.1,3.7978]
[1727753746165,4.60734,2633.6,2633.4,0.10650408]
[1727753746364,4.60734,2633.6,2633.1,3.7978]
[1727753746585,4.60734,2633.6,2633.5,0.10647931]
[1727753746765,4.60734,2633.6,2633.0,7.5957]
[1727753746966,4.60734,2633.6,2633.5,0.10647931]
[1727753747194,4.60734,2633.6,2633.0,7.5957]
[1727753747375,4.60734,2633.6,2633.5,0.10647931]
[1727753747577,4.60734,2633.6,2633.1,3.79779]
[1727753747782,4.60728,2633.6,2633.5,0.10647931]
[1727753748113,5.44771,2633.6,2633.5,0.10649551]
[1727753748427,5.44771,2633.6,2633.0,3.79784]
[1727753748601,4.60728,2633.6,2633.5,0.10649551]
[1727753748786,4.60728,2633.6,2633.0,3.79784]
[1727753748984,4.60728,2633.6,2633.5,0.10649551]
[1727753749184,4.60728,2633.6,2633.0,7.59571]
[1727753749670,4.60728,2633.6,2633.1,3.79777]
[1727753749871,5.44771,2633.6,2633.1,3.90436461]
[1727753751171,3.79738,2633.4,2633.1,0.10659461]
[1727753751374,0.8197,2633.3,2633.1,0.10659461]
[1727753751699,0.8197,2633.3,2633.2,0.10650094]
[1727753751873,0.8197,2633.3,2632.8,7.59629]
[1727753751874,1.66114,2633.3,2632.8,7.59629]
[1727753752071,0.8197,2633.3,2632.9,0.10657933]
[1727753752411,4.61729,2633.3,2632.9,0.10657933]
[1727753752712,0.8197,2633.3,2632.9,0.10657933]
[1727753753395,0.8197,2633.3,2632.9,3.90456933]
[1727753753770,0.8197,2633.3,2632.9,7.70253933]
[1727753753976,0.8197,2633.3,2633.0,0.77025393]
[1727753754181,0.8197,2633.3,2633.0,4.56810393]
[1727753754383,0.8197,2633.3,2633.1,0.10654192]
[1727753754589,0.7611,2633.5,2633.1,3.90433192]
[1727753756092,0.7611,2633.5,2633.1,0.10654192]
[1727753756481,4.55836,2633.5,2633.1,0.10654192]
[1727753759298,0.7611,2633.5,2633.1,0.10654192]
[1727753759496,3.79738,2633.4,2633.1,0.10654192]
[1727753762816,3.7976,2633.3,2633.1,0.10654192]
[1727753763002,8.1451349,2633.2,2633.1,0.10654192]
[1727753763342,8.1451349,2633.2,2632.1,4.55646]
[1727753763343,0.8234,2632.6,2632.1,4.55646]
[1727753763638,0.8234,2632.6,2632.2,0.10680146]
[1727753763933,3.79889,2632.4,2632.2,0.10680146]
[1727753764228,3.79897,2632.3,2631.7,4.557]
[1727753764428,3.79889,2632.4,2631.8,3.79966]
[1727753765106,3.79897,2632.3,2631.7,4.557]
[1727753765312,3.79889,2632.4,2631.8,3.79967]
[1727753765530,3.79889,2632.4,2631.9,3.79949]
[1727753766238,3.79869,2632.5,2631.9,3.79949]
[1727753766576,3.79869,2632.5,2632.0,0.10685106]
[1727753767235,3.79887,2632.4,2632.0,0.10685106]
[1727753767595,4.62198,2632.6,2631.7,5.692706]
[1727753767796,8.42062,2632.6,2632.1,0.10682626]
[1727753767996,4.62198,2632.6,2631.9,3.79949]
[1727753768192,4.62198,2632.6,2632.2,0.10680146]
[1727753768433,4.62198,2632.6,2632.0,0.07598387]
[1727753768600,4.62198,2632.6,2632.3,0.10677667]
[1727753768812,5.46401,2632.6,2632.0,0.07598387]
[1727753769023,5.46401,2632.6,2632.4,0.10675187]
[1727753769331,5.46401,2632.6,2632.5,0.10672708]
[1727753769506,5.46401,2632.6,2631.9,3.79945]
[1727753769723,5.46401,2632.6,2632.0,3.90615106]
[1727753770034,5.46401,2632.6,2632.1,0.8031]
[1727753770035,4.62198,2632.6,2632.1,0.8031]
[1727753770449,4.62198,2632.6,2632.2,0.10680146]
[1727753771314,8.42061,2632.6,2632.2,0.10680146]
[1727753771625,4.62198,2632.6,2632.2,0.10680146]
[1727753772117,8.42059,2632.6,2632.2,0.10680146]
[1727753772518,4.62198,2632.6,2632.2,0.10680146]
[1727753773447,3.79868,2632.5,2632.2,0.10680146]
[1727753773809,4.62198,2632.6,2632.2,0.10680146]
[1727753774009,8.42058,2632.6,2632.2,0.10680146]
[1727753774911,4.62198,2632.6,2632.2,0.10680146]
[1727753775113,3.79885,2632.4,2632.2,0.10680146]
[1727753776956,5.084178,2632.6,2632.2,0.10680146]
[1727753777158,3.79838,2632.7,2632.2,0.10680146]
[1727753777860,4.63062,2632.8,2632.2,0.10680146]
[1727753778062,3.7984,2632.7,2632.2,3.90587146]
[1727753778359,3.79856,2632.6,2632.2,0.96520823]
[1727753778866,3.79856,2632.6,2632.2,0.10680146]
[1727753779229,4.63062,2632.8,2632.2,0.10680146]
[1727753779552,3.79842,2632.7,2632.2,0.10680146]
[1727753781139,3.79861,2632.6,2632.2,0.10680146]
[1727753781346,3.79842,2632.7,2632.2,0.10680146]
[1727753781347,3.79878,2632.5,2632.2,0.10680146]
[1727753781523,7.59756,2632.5,2632.2,0.10680146]
[1727753781734,3.79883,2632.4,2632.2,0.10680146]
[1727753782332,3.79878,2632.5,2632.2,0.10680146]
[1727753783730,4.558505,2632.5,2632.2,0.10680146]
[1727753783927,3.79881,2632.4,2632.2,0.10680146]
[1727753784267,3.79878,2632.5,2632.2,0.10680146]
[1727753784460,3.79876,2632.5,2632.2,0.10680146]
[1727753786145,3.79848,2632.7,2632.2,0.10680146]
[1727753786546,3.79848,2632.7,2632.2,3.90589146]
[1727753787028,3.79848,2632.7,2632.2,4.75671461]
[1727753787472,3.79848,2632.7,2632.2,0.95762461]
[1727753787666,3.79848,2632.7,2632.2,0.10680146]
[1727753788351,3.79848,2632.7,2632.2,3.90586146]
[1727753790070,3.79834,2632.8,2632.3,3.79894]
[1727753790567,3.79834,2632.8,2632.4,0.10749867]
[1727753790981,0.7868,2633.0,2632.5,4.62485]
[1727753791159,11.14781,2633.1,2632.6,0.74316701]
[1727753791344,11.14781,2633.1,2632.6,4.54167701]
[1727753793479,7.35,2633.1,2632.7,3.79835]
[1727753793789,3.79774,2633.2,2632.8,0.10730221]
[1727753794266,7.59548,2633.2,2632.7,0.8261]
[1727753794466,7.59548,2633.2,2632.9,0.10727743]
[1727753794681,7.59548,2633.2,2632.8,0.10730221]
[1727753794993,3.7978,2633.1,2632.9,0.10727743]
[1727753795380,3.7978,2633.1,2632.7,0.8261]
[1727753795583,3.7978,2633.1,2632.8,0.10730221]
[1727753795765,3.7978,2633.1,2632.7,0.8261]
[1727753795967,3.7978,2633.1,2632.8,0.10730221]
[1727753796181,3.7978,2633.1,2632.7,0.8261]
[1727753796388,3.7978,2633.1,2632.8,0.10730221]
[1727753796749,3.79795,2633.0,2632.7,0.8261]
[1727753796949,3.79795,2633.0,2632.8,0.10730221]
[1727753797154,3.79795,2633.0,2632.7,0.8261]
[1727753797383,3.79795,2633.0,2632.8,0.10730221]
[1727753797607,3.79795,2633.0,2632.7,0.8261]
[1727753797765,3.79795,2633.0,2632.9,0.10727743]
[1727753797955,3.79795,2633.0,2632.7,0.8261]
[1727753798297,3.79795,2633.0,2632.8,0.10730221]
[1727753798793,3.79795,2633.0,2632.9,0.10727743]
[1727753799296,3.79795,2633.0,2632.7,0.8261]
[1727753799455,3.79795,2633.0,2632.9,0.10704229]
[1727753799650,3.79773,2633.2,2632.8,0.10706708]
[1727753799899,3.79789,2633.1,2632.9,0.10704229]